﻿Department family,Entity,Date,Expense type,Expense area,Supplier,Transaction number,Amount,Description,Supplier Postcode
Corporate Services,Service Performance,23/01/2024,Contract : Other External,Properties,Amas Ltd,00310-202300119,"8,177.71 ",Broad Street Service Charge,E14 5WQ
Balance Sheet,L2 Long Term Creditors,23/01/2024,Lease Liabilities under IFRS 16 < 1 year,Finance Leases,Amas Ltd,00310-202300119,"47,916.00 ",rent for Broad Street Plaza ,E14 5WQ
Balance Sheet,L2 Current Assets,05/01/2024,Finished Processed Goods,Stock & Work In Progress,Bristol Myers Squibb Pharmaceuticals Ltd,100734913,"38,536.43 ",Pharmaceutical purchase,CH4 9QW
Corporate Services,Finance,10/01/2024,Legal Fees,Finance,Bevan Brittan Llp,10256325,"26,617.80 ",Legal Services,LS1 2HJ
Balance Sheet,L2 Current Assets,26/01/2024,Finished Processed Goods,Stock & Work In Progress,Roche Products Ltd,1322311807,"85,728.00 ",Pharmaceutical purchase,AL7 1TW
Balance Sheet,L2 Current Assets,26/01/2024,Finished Processed Goods,Stock & Work In Progress,Roche Products Ltd,1322311859,"33,744.00 ",Pharmaceutical purchase,AL7 1TW
Balance Sheet,L2 Current Assets,26/01/2024,Finished Processed Goods,Stock & Work In Progress,Roche Products Ltd,1322312798,"29,347.20 ",Pharmaceutical purchase,AL7 1TW
Balance Sheet,L2 Current Assets,26/01/2024,Finished Processed Goods,Stock & Work In Progress,Roche Products Ltd,1322313926,"33,288.00 ",Pharmaceutical purchase,AL7 1TW
Balance Sheet,L2 Current Assets,26/01/2024,Finished Processed Goods,Stock & Work In Progress,Roche Products Ltd,1322314102,"85,728.00 ",Pharmaceutical purchase,AL7 1TW
Balance Sheet,L2 Current Assets,26/01/2024,Finished Processed Goods,Stock & Work In Progress,Roche Products Ltd,1322314603,"26,558.40 ",Pharmaceutical purchase,AL7 1TW
Recharges,Recharges,05/01/2024,Healthcare From NHS Trusts,Recharges,The Leeds Teaching Hospitals NHS Trust,1410217361,"291,266.00 ",Various services provided by agreement as per West Yorkshire Association of Acute Trusts agreed methodology,LS9 7TF
Central & Technical,Tech Accounting,24/01/2024,Healthcare From NHS Trusts,Tech Accounting,The Leeds Teaching Hospitals NHS Trust,1410220136,"130,737.00 ",LIMS Depreciation and PDC Contribution 2023/24,LS9 7TF
Recharges,Recharges,05/01/2024,Healthcare From NHS Trusts,Recharges,Mid Yorkshire Teaching NHS Trust,1600025266,"62,059.68 ",Various services provided by agreement as per West Yorkshire Association of Acute Trusts agreed methodology,WF1 4DG
Families & Specialist Services,Pharmacy,10/01/2024,Healthcare From Commercial Sector,Pharm Gen,L Rowland & Company (Retail) Ltd,1800001764,"98,095.17",Outpatient Pharmacy DISPENSING FEE costs ,WA7 3DJ
Families & Specialist Services,Pharmacy,10/01/2024,Healthcare From Commercial Sector,Pharm Gen,L Rowland & Company (Retail) Ltd,1800001764,"777,651.88 ",Outpatient Pharmacy Contract MEDICINES SPEND ,WA7 3DJ
Corporate Services,Service Performance,26/01/2024,Rates,Properties,Calderdale Metropolitan Borough Council,25202391017613,"77,440.00 ",Council Tax for Calderdale Royal Hospital,HX1 1TP
Community Division,Community Therapies,26/01/2024,Patients Appliances : Purchase,Patient Appliances,Taycare Medical Ltd,27425,"44,452.07 ",supply of specialist orthotic products,LS12 6LL
Community Division,Community Therapies,26/01/2024,Patients Appliances : Purchase,Patient Appliances,Taycare Medical Ltd,27426,"45,722.73 ",supply of specialist orthotic products,LS12 6LL
Recharges,Recharges,12/01/2024,Healthcare From Foundation Trusts,Recharges,Bradford Teaching Hospitals NHS Foundation Trust,325454,"118,442.59 ",Various services provided by agreement as per West Yorkshire Association of Acute Trusts agreed methodology,LS11 1HP
Corporate Services,Corporate Services,05/01/2024,Professional Fees,Corporate Services,Care Quality Commission,43323876,"35,636.00 ",Annual Fee: NHS Trusts - based on operating revenue. Please see Guidance for Providers: Fees.,LS11 1HP
Pmu,Pmu,10/01/2024,Drugs,Pmu,Active Pharma Supplies Ltd,5837,"26,484.00 ",Pharmaceutical purchase,PR25 2ZJ
Families & Specialist Services,Pathology,15/01/2024,Blood Products,Blood Sciences,NHS Blood And Transplant,7020439,"88,143.21 ",MONTHLY CONTRACT CHARGE BLOOD & COMPONENTS,LS15 7TW
Families & Specialist Services,Pathology,15/01/2024,Blood Products,Blood Sciences,NHS Blood And Transplant,7020440,"31,648.12 ",MONTHLY CONTRACT CHARGE BLOOD & COMPONENTS,LS15 7TW
Balance Sheet,L2 Current Assets,05/01/2024,Other Debtors < One Year,Other Debtors,Northumbria Healthcare NHS Foundation Trust,7510643857,"64,054.12 ",Salary Sacrifice cars,NE27 0QJ
Corporate Services,Finance,26/01/2024,Computer Software / License Fees,Finance,Northumbria Healthcare NHS Foundation Trust,7550006940,"23,965.90 ",Oracle Cloud Finance System monthly cost,NE27 0QJ
Balance Sheet,L2 Current Assets,12/01/2024,Finished Processed Goods,Stock & Work In Progress,Bayer Plc,824C538082,"27,373.68 ",Pharmaceutical purchase,RG2 6AD
Balance Sheet,L2 Current Assets,26/01/2024,Finished Processed Goods,Stock & Work In Progress,Bayer Plc,824C540809,"27,373.68 ",Pharmaceutical purchase,RG2 6AD
Balance Sheet,L2 Current Assets,26/01/2024,Other Debtors < One Year,Other Debtors,Tuskerdirect Ltd,85597,"133,125.72 ",Salary Sacrifice cars,WD18 8YF
Balance Sheet,L2 Current Assets,24/01/2024,Finished Processed Goods,Stock & Work In Progress,Janssen-Cilag Ltd,930945829,"36,806.40 ",Pharmaceutical purchase,HP12 4EG
Balance Sheet,L2 Current Assets,24/01/2024,Finished Processed Goods,Stock & Work In Progress,Janssen-Cilag Ltd,930946231,"36,806.40 ",Pharmaceutical purchase,HP12 4EG
Balance Sheet,L2 Current Assets,24/01/2024,Finished Processed Goods,Stock & Work In Progress,Janssen-Cilag Ltd,930948423,"29,445.12 ",Pharmaceutical purchase,HP12 4EG
Balance Sheet,L2 Current Assets,05/01/2024,Finished Processed Goods,Stock & Work In Progress,Csl Behring Uk Ltd,994062731,"65,910.00 ",Pharmaceutical purchase,RH16 1AH
Corporate Services,Service Performance,19/01/2024,Contract : Other External,Pfi,Calderdale Hospital Spc Ltd,CASI144,"3,449,836.54 ",PFI contract monthly payment,M20 2YY
Corporate Services,Service Performance,12/01/2024,External Contracts : Catering,Pfi,Calderdale Hospital Spc Ltd,CASI145,"56,674.80 ",Additional variations,M20 2YY
Medical Division,Emergency Medicine,17/01/2024,B5 Agency Nursing,A&E Nursing,Your Nurse Ltd,EHCX71,989.25 ,B5 Agency Nursing,E14 5RE
Surgery & Anaesthetics,General Surgery,17/01/2024,B5 Agency Nursing,Endoscopy,Your Nurse Ltd,EHCX71,"1,795.50 ",B5 Agency Nursing,E14 5RE
Medical Division,Medical Specialities,17/01/2024,B5 Agency Nursing,Gastroenterology,Your Nurse Ltd,EHCX71,"1,610.00 ",B5 Agency Nursing,E14 5RE
Medical Division,Acute Medical,17/01/2024,B5 Agency Nursing,General Medicine,Your Nurse Ltd,EHCX71,"4,918.50 ",B5 Agency Nursing,E14 5RE
Surgery & Anaesthetics,General Surgery,17/01/2024,B5 Agency Nursing,General Surgery,Your Nurse Ltd,EHCX71,"1,384.00 ",B5 Agency Nursing,E14 5RE
Medical Division,Acute Medical,17/01/2024,B5 Agency Nursing,Geriatric Medicine,Your Nurse Ltd,EHCX71,"4,161.50 ",B5 Agency Nursing,E14 5RE
Medical Division,Integrated Medical Specialities,17/01/2024,B5 Agency Nursing,Ims Stroke / Rehabilitation,Your Nurse Ltd,EHCX71,"6,341.00 ",B5 Agency Nursing,E14 5RE
Medical Division,Integrated Medical Specialities,17/01/2024,B5 Agency Nursing,Medical Oncology,Your Nurse Ltd,EHCX71,372.00 ,B5 Agency Nursing,E14 5RE
Medical Division,Medical Specialities,17/01/2024,B5 Agency Nursing,Respiratory,Your Nurse Ltd,EHCX71,"1,737.50 ",B5 Agency Nursing,E14 5RE
Surgery & Anaesthetics,Orthopaedics,17/01/2024,B5 Agency Nursing,Trauma & Orthopaedics,Your Nurse Ltd,EHCX71,"1,458.50 ",B5 Agency Nursing,E14 5RE
Medical Division,Emergency Medicine,17/01/2024,B5 Agency Nursing,A&E Nursing,Your Nurse Ltd,EHCX83,900,B5 Agency Nursing,E14 5RE
Medical Division,Medical Specialities,17/01/2024,B5 Agency Nursing,Cardiology,Your Nurse Ltd,EHCX83,422,B5 Agency Nursing,E14 5RE
Corporate Services,RAFT,17/01/2024,B5 Agency Nursing,Central Operations Team CORP,Your Nurse Ltd,EHCX83,5188.49,B5 Agency Nursing,E14 5RE
Surgery & Anaesthetics,General Surgery,17/01/2024,B5 Agency Nursing,Endoscopy,Your Nurse Ltd,EHCX83,1496.25,B5 Agency Nursing,E14 5RE
Medical Division,Medical Specialities,17/01/2024,B5 Agency Nursing,Gastroenterology,Your Nurse Ltd,EHCX83,300.67,B5 Agency Nursing,E14 5RE
Medical Division,Acute Medical,17/01/2024,B5 Agency Nursing,General Medicine,Your Nurse Ltd,EHCX83,4543.5,B5 Agency Nursing,E14 5RE
Surgery & Anaesthetics,General Surgery,17/01/2024,B5 Agency Nursing,General Surgery,Your Nurse Ltd,EHCX83,1341.5,B5 Agency Nursing,E14 5RE
Medical Division,Acute Medical,17/01/2024,B5 Agency Nursing,Geriatric Medicine,Your Nurse Ltd,EHCX83,5137.5,B5 Agency Nursing,E14 5RE
Medical Division,Integrated Medical Specialities,17/01/2024,B5 Agency Nursing,Ims Stroke / Rehabilitation,Your Nurse Ltd,EHCX83,2831,B5 Agency Nursing,E14 5RE
Medical Division,Integrated Medical Specialities,17/01/2024,B5 Agency Nursing,Medical Oncology,Your Nurse Ltd,EHCX83,435.5,B5 Agency Nursing,E14 5RE
Medical Division,Medical Specialities,17/01/2024,B5 Agency Nursing,Respiratory,Your Nurse Ltd,EHCX83,4184.67,B5 Agency Nursing,E14 5RE
Surgery & Anaesthetics,Orthopaedics,17/01/2024,B5 Agency Nursing,Trauma & Orthopaedics,Your Nurse Ltd,EHCX83,2416.51,B5 Agency Nursing,E14 5RE
Medical Division,Emergency Medicine,19/01/2024,B5 Agency Nursing,A&E Nursing,Your Nurse Ltd,EHCX84,"1,416.00 ",B5 Agency Nursing,E14 5RE
Medical Division,Medical Specialities,19/01/2024,B5 Agency Nursing,Cardiology,Your Nurse Ltd,EHCX84,451.00 ,B5 Agency Nursing,E14 5RE
Corporate Services,RAFT,19/01/2024,B5 Agency Nursing,Central Operations Team CORP,Your Nurse Ltd,EHCX84,"2,517.50 ",B5 Agency Nursing,E14 5RE
Medical Division,Acute Medical,19/01/2024,B5 Agency Nursing,General Medicine,Your Nurse Ltd,EHCX84,"6,697.50 ",B5 Agency Nursing,E14 5RE
Surgery & Anaesthetics,General Surgery,19/01/2024,B5 Agency Nursing,General Surgery,Your Nurse Ltd,EHCX84,"1,737.50 ",B5 Agency Nursing,E14 5RE
Medical Division,Acute Medical,19/01/2024,B5 Agency Nursing,Geriatric Medicine,Your Nurse Ltd,EHCX84,"3,628.50 ",B5 Agency Nursing,E14 5RE
Medical Division,Integrated Medical Specialities,19/01/2024,B5 Agency Nursing,Ims Stroke / Rehabilitation,Your Nurse Ltd,EHCX84,"3,379.00 ",B5 Agency Nursing,E14 5RE
Medical Division,Integrated Medical Specialities,19/01/2024,B5 Agency Nursing,Medical Oncology,Your Nurse Ltd,EHCX84,480.00 ,B5 Agency Nursing,E14 5RE
Medical Division,Medical Specialities,19/01/2024,B5 Agency Nursing,Respiratory,Your Nurse Ltd,EHCX84,"2,562.50 ",B5 Agency Nursing,E14 5RE
Surgery & Anaesthetics,Orthopaedics,19/01/2024,B5 Agency Nursing,Trauma & Orthopaedics,Your Nurse Ltd,EHCX84,"1,445.50 ",B5 Agency Nursing,E14 5RE
Balance Sheet,L2 Current Assets,05/01/2024,Finished Processed Goods,Stock & Work In Progress,Alliance Healthcare Distribution Ltd,F3C952657,"67,542.25 ",Pharmaceutical purchase,KT9 1SN
Balance Sheet,L2 Current Assets,17/01/2024,Finished Processed Goods,Stock & Work In Progress,Alliance Healthcare Distribution Ltd,F3CJ56988,"134,919.61 ",Pharmaceutical purchase,KT9 1SN
Surgery & Anaesthetics,Surgical Divisional Support,19/01/2024,Healthcare From Commercial Sector,Elective Recovery,Calderdale And Huddersfield Orthopaedic Partnership Llp,INV-0105,"71,072.06 ",Provision of Orthopaedic and/or Specialty Healthcare Services,LS8 2JH
Surgery & Anaesthetics,Surgical Divisional Support,19/01/2024,Healthcare From Commercial Sector,Elective Recovery,Calderdale And Huddersfield Orthopaedic Partnership Llp,INV-0108,"75,000.00 ",Provision of Orthopaedic and/or Specialty Healthcare Services,LS8 2JH
Surgery & Anaesthetics,Surgical Divisional Support,19/01/2024,Healthcare From Commercial Sector,Elective Recovery,Calderdale And Huddersfield Orthopaedic Partnership Llp,INV-0109,"82,089.13 ",Provision of Orthopaedic and/or Specialty Healthcare Services,LS8 2JH
Surgery & Anaesthetics,Surgical Divisional Support,26/01/2024,Healthcare From Commercial Sector,Elective Recovery,Calderdale And Huddersfield Orthopaedic Partnership Llp,INV-0111,"75,000.00 ",Provision of Orthopaedic and/or Specialty Healthcare Services,LS8 2JH
Surgery & Anaesthetics,Surgical Divisional Support,26/01/2024,Healthcare From Commercial Sector,Elective Recovery,Calderdale And Huddersfield Orthopaedic Partnership Llp,INV-0112,"31,204.59 ",Provision of Orthopaedic and/or Specialty Healthcare Services,LS8 2JH
Medical Division,Medical Specialities,26/01/2024,Interpreting Services,Cardiology,TheBigWord Interpreting Services Limited,INV20278385,246.9,Interpreting Services,LS12 6AB
Community Division,Community Nursing,26/01/2024,Interpreting Services,Community Matrons,TheBigWord Interpreting Services Limited,INV20278385,208.89,Interpreting Services,LS12 6AB
Families & Specialist Services,Childrens & Young Persons Services,26/01/2024,Interpreting Services,Community Paediatrics,TheBigWord Interpreting Services Limited,INV20278385,178.13,Interpreting Services,LS12 6AB
Community Division,Community Therapies,26/01/2024,Interpreting Services,Ctr Therapies Outpatients,TheBigWord Interpreting Services Limited,INV20278385,7666.07,Interpreting Services,LS12 6AB
Medical Division,Acute Medical,26/01/2024,Interpreting Services,Diabetes Endocrinology,TheBigWord Interpreting Services Limited,INV20278385,665.29,Interpreting Services,LS12 6AB
Community Division,Community Nursing,26/01/2024,Interpreting Services,End Of Life & Palliative care,TheBigWord Interpreting Services Limited,INV20278385,25.88,Interpreting Services,LS12 6AB
Surgery & Anaesthetics,Head & Neck,26/01/2024,Interpreting Services,Ent,TheBigWord Interpreting Services Limited,INV20278385,193.5,Interpreting Services,LS12 6AB
Families & Specialist Services,Womens,26/01/2024,Interpreting Services,Gynaecology,TheBigWord Interpreting Services Limited,INV20278385,818.92,Interpreting Services,LS12 6AB
Medical Division,Integrated Medical Specialities,26/01/2024,Interpreting Services,Ims Stroke / Rehabilitation,TheBigWord Interpreting Services Limited,INV20278385,113.57,Interpreting Services,LS12 6AB
Medical Division,Integrated Medical Specialities,26/01/2024,Interpreting Services,Medical Oncology,TheBigWord Interpreting Services Limited,INV20278385,102.75,Interpreting Services,LS12 6AB
Medical Division,Integrated Medical Specialities,26/01/2024,Interpreting Services,Neuro Sciences,TheBigWord Interpreting Services Limited,INV20278385,25.88,Interpreting Services,LS12 6AB
Families & Specialist Services,Womens,26/01/2024,Interpreting Services,Obstetrics,TheBigWord Interpreting Services Limited,INV20278385,3756.91,Interpreting Services,LS12 6AB
Surgery & Anaesthetics,Operating Services,26/01/2024,Interpreting Services,Operating Services,TheBigWord Interpreting Services Limited,INV20278385,1899.66,Interpreting Services,LS12 6AB
Surgery & Anaesthetics,Head & Neck,26/01/2024,Interpreting Services,Ophthalmology,TheBigWord Interpreting Services Limited,INV20278385,2344.84,Interpreting Services,LS12 6AB
Surgery & Anaesthetics,Head & Neck,26/01/2024,Interpreting Services,Oral Surgery,TheBigWord Interpreting Services Limited,INV20278385,36.11,Interpreting Services,LS12 6AB
Families & Specialist Services,Outpatients & Records Services,26/01/2024,Interpreting Services,Outpatients Dept,TheBigWord Interpreting Services Limited,INV20278385,1680.35,Interpreting Services,LS12 6AB
Surgery & Anaesthetics,Critical Care,26/01/2024,Interpreting Services,Pain Management,TheBigWord Interpreting Services Limited,INV20278385,434.37,Interpreting Services,LS12 6AB
Families & Specialist Services,Radiology,26/01/2024,Interpreting Services,Rad General,TheBigWord Interpreting Services Limited,INV20278385,2498.09,Interpreting Services,LS12 6AB
Community Division,Community Therapies,26/01/2024,Interpreting Services,Sit Team,TheBigWord Interpreting Services Limited,INV20278385,204.8,Interpreting Services,LS12 6AB
Total Trust,Surgery & Anaesthetics,26/01/2024,Interpreting Services,Surgical Closed Cost Centres,TheBigWord Interpreting Services Limited,INV20278385,1128.47,Interpreting Services,LS12 6AB
Surgery & Anaesthetics,General Surgery,26/01/2024,Interpreting Services,Urology,TheBigWord Interpreting Services Limited,INV20278385,170.02,Interpreting Services,LS12 6AB
Health Informatics,Corporate And Operations,12/01/2024,Computer Network Costs,It Support,Redcentric Solutions Ltd,SI069324,"66,125.08 ",LeasedLine 1000Mb/10000Mb – Resilient Fully Diverse  Fee Site: Huddersfield Royal Infirmary-HD3 3EA Site: Calderdale Royal Hospital Crh-HX3 0PW,HG3 1UG
Corporate Services,Quality,15/01/2024,Clinical Negligence,Quality,NHS Resolution,SICX414761,"1,769,033.80 ",Clinical Negligence provision,SW1W 9SZ
Families & Specialist Services,Womens,15/01/2024,Clinical Negligence,Womens Management,NHS Resolution,SICX414761,"1,769,033.80 ",Clinical Negligence provision,SW1W 9SZ
Corporate Services,Quality,15/01/2024,Insurance Costs,Quality,NHS Resolution,SICX414761,"1,769,033.80 ",Clinical Negligence provision,SW1W 9SZ
Balance Sheet,L2 Current Assets,24/01/2024,Other Debtors < One Year,Other Debtors,Vision Pharmaceuticals Ltd,SIN013982,"56,550.00 ",PAEDIATRIC RETINAL IMAGING SYSTEM HD-FA,SK10 2XA
Corporate Services,Service Performance,26/01/2024,Contract : Other External,Properties,Pennine Property Partnership Llp,SINV4151,"55,066.34 ",Service Charge Recharge - December 2023,WA4 6HL
Surgery & Anaesthetics,Head & Neck,19/01/2024,Computer Software / License Fees,Ophthalmology,Medisoft Ltd,103793,"30,865.64 ",Medisoft (Sight) Ophthalmology Technical & Telephone User Support and Upgrades to the Licensed ModulesPeriod of Cover 4th January 2024 to 3rd January 2025,LS2 9DF
CHS Balance Sheet,Current Liabilities,10/01/2024,Non- NHS Trade Creditors < One Year,Other Creditors,NHS Supply Chain,1124235557,"147,877.42 ",Goods delivered week ending 24-Nov-2023,DE55 4QJ
CHS Balance Sheet,Current Liabilities,10/01/2024,Non- NHS Trade Creditors < One Year,Other Creditors,NHS Supply Chain,1124237901,"160,684.88 ",Goods delivered week ending 01-Dec-2023,DE55 4QJ
CHS Balance Sheet,Current Liabilities,10/01/2024,Non- NHS Trade Creditors < One Year,Other Creditors,NHS Supply Chain,1124242580,"174,781.95 ",Goods delivered week ending 01-Dec-2023,DE55 4QJ
CHS Balance Sheet,Current Liabilities,10/01/2024,Non- NHS Trade Creditors < One Year,Other Creditors,NHS Supply Chain,1124246229,"164,512.99 ",Goods delivered week ending 08-Dec-2023,DE55 4QJ
CHS Balance Sheet,Current Liabilities,10/01/2024,Non- NHS Trade Creditors < One Year,Other Creditors,NHS Supply Chain,1124249576,"182,091.77 ",Goods delivered week ending 08-Dec-2023,DE55 4QJ
CHS Balance Sheet,Current Liabilities,12/01/2024,Non- NHS Trade Creditors < One Year,Other Creditors,NHS Supply Chain,1124253272,"177,326.25 ",Goods delivered week ending 15-Dec-2023,DE55 4QJ
CHS Balance Sheet,Current Liabilities,12/01/2024,Non- NHS Trade Creditors < One Year,Other Creditors,NHS Supply Chain,1124256773,"264,305.37 ",Goods delivered week ending 15-Dec-2023,DE55 4QJ
CHS Balance Sheet,Current Liabilities,26/01/2024,Non- NHS Trade Creditors < One Year,Other Creditors,NHS Supply Chain,1124259814,"153,343.60 ",Goods delivered week ending 22-Dec-2023,DE55 4QJ
CHS Balance Sheet,Current Liabilities,26/01/2024,Non- NHS Trade Creditors < One Year,Other Creditors,NHS Supply Chain,1124264130,"192,064.81 ",Goods delivered week ending 22-Dec-2023,DE55 4QJ
CHS Balance Sheet,Current Liabilities,26/01/2024,Non- NHS Trade Creditors < One Year,Other Creditors,NHS Supply Chain,1124265129,"81,752.30 ",Goods delivered week ending 29-Dec-2023,DE55 4QJ
CHS Balance Sheet,Current Liabilities,26/01/2024,Non- NHS Trade Creditors < One Year,Other Creditors,NHS Supply Chain,1124266909,"111,382.59 ",Goods delivered week ending 29-Dec-2023,DE55 4QJ
Families & Specialist Services,Pathology,12/01/2024,Laboratory Chemicals,Path Chemical Pathology,Siemens Healthcare Diagnostics Ltd,115374654,"187,479.89 ",Laboratory manged service contract,GU15 3YL
Families & Specialist Services,Pathology,12/01/2024,Laboratory Chemicals,Path Chemical Pathology,Siemens Healthcare Diagnostics Ltd,115374655,"187,479.89 ",Laboratory manged service contract,GU15 3YL
Families & Specialist Services,Pathology,12/01/2024,Laboratory Chemicals,Path Chemical Pathology,Siemens Healthcare Diagnostics Ltd,115374656,"187,479.89 ",Laboratory manged service contract,GU15 3YL
Health Informatics,Corporate And Operations,19/01/2024,Computer Hardware Purchases,It Support,Kingsfield Computer Products Ltd,120222,"45,633.12",Cisco 9115 Grey power over ethernet,NN3 6WL
Health Informatics,Corporate And Operations,19/01/2024,Computer Maintenance,It Support,Kingsfield Computer Products Ltd,120222,"11,140.48",SMART-MAINT-HWO-BRONZE.  Desc:  Smart Maintenance,NN3 6WL
CHS Facilities,L2 Facilities,19/01/2024,Contract : Premises Security,Security,The Leeds Teaching Hospitals NHS Trust,1410219923,"36,161.22 ",Security Contract ,LS9 7TF
Recharges,Recharges,12/01/2024,Med Surg Eqpt Hire,Recharges,"Five Mobility Ltd		",16192,"34,652.52 ",HIRE OF SPECIALIST BARIATRIC THERAPY EQUIPMENT CONSUMABLES ,YO8 8QQ
Recharges,Recharges,24/01/2024,Med Surg Eqpt Hire,Recharges,"Five Mobility Ltd		",16506,"38,263.98 ",HIRE OF SPECIALIST BARIATRIC THERAPY EQUIPMENT CONSUMABLES ,YO8 8QQ
Families & Specialist Services,Radiology,24/01/2024,Furniture And Fittings,Ct,Medispace B.V.,20230494,"26,386.38 ",Rental of cm050 ct scan box with canon prime 160 slice CT plus 2 radiographers to run the service 8am - 8pm 7days a week,2712 PJ  The Netherlands
Families & Specialist Services,Radiology,26/01/2024,Contractual Clinical Services,Rad General,Telemedicine Clinic Ltd,20230633,"150,566.07 ",Teleradiology Reporting ,B3 2RT
Families & Specialist Services,Radiology,05/01/2024,Imaging Equipment Purchases,Ct,Medispace Diagnostics Ltd,23600302,"106,966.50 ",Mobile CT Scanner Calderdale Royal Hospital Site,WA2 0XP
Families & Specialist Services,CDC - Community Diagnostic Hubs,05/01/2024,Med Surg Eqpt Leasing,Spoke - Broadstreet Halifax,Medispace Diagnostics Ltd,23600323,"72,990.14 ",Mobile CT Scanner Acre Mill,WA2 0XP
Families & Specialist Services,Radiology,05/01/2024,Imaging Equipment Purchases,Ct,Medispace Diagnostics Ltd,23600324,"28,971.00 ",C192284 – Mobile CT Scanner Acre Mill,WA2 0XP
Balance Sheet,Fixed Assets,19/01/2024,Additions - Assets Under Construction,Capital (Fss),Integrated Health Projects,24010032,"924,306.83 ",BROADSTREET - DESIGN  AND REFURBISHMENT TO CREATE A COMMUNITY DIAGNOSTICS CENTRE,WD24 4WW
Balance Sheet,Fixed Assets,26/01/2024,Additions - Assets Under Construction,Capital (Fss),Hologic Ltd,2466321,"26,400.00 ",OMNI 30 HYSTEROSCOPES Scope 30 + NTOC OMNI TRAY,M23 9HZ
CHS Estates,L2 Estates,12/01/2024,Contract : Other External,Medical Physics,B Braun Sterilog (Yorkshire) Ltd,328747161,"205,784.44 ",Decontamination Services for Surgical & Podiatry. ,S35 2PW
CHS Estates,L2 Estates,26/01/2024,Domestic Waste,Estates Operations,Suez Recycling & Recovery UK Ltd,33175381,"10,332.35",Collection of mixed waste streams from Huddersfield Royal Infirmary.from 1st July 2023 to 31st March 2024.,BS22 6WA
CHS Estates,L2 Estates,26/01/2024,Domestic Waste,Estates Operations,Suez Recycling & Recovery UK Ltd,33175381,"10,245.39",Collection of mixed waste streams from Calderdale Royal Hospitalfrom 1st July 2023 to 31st March 2024.,BS22 6WA
CHS Estates,L2 Estates,26/01/2024,Domestic Waste,Estates Operations,Suez Recycling & Recovery UK Ltd,33175381,"1,036.13",Collection of mixed waste streams from Acre Mill Outpatients.from 1st July 2023 to 31st March 2024.,BS22 6WA
CHS Estates,L2 Estates,26/01/2024,Domestic Waste,Estates Operations,Suez Recycling & Recovery UK Ltd,33175381,66.82,Collection of mixed waste streams from Allan House Clinic  from 1st July 2023 to 31st March 2024.,BS22 6WA
CHS Estates,L2 Estates,26/01/2024,Domestic Waste,Estates Properties,Suez Recycling & Recovery UK Ltd,33175381,98.00,Collection of mixed waste streams from Beechwood Health Centre.from 1st July 2023 to 31st March 2024.,BS22 6WA
CHS Estates,L2 Estates,26/01/2024,Domestic Waste,Estates Operations,Suez Recycling & Recovery UK Ltd,33175381,251.28,Collection of mixed waste streams from Brighouse Health Centre.from 1st July 2023 to 31st March 2024.,BS22 6WA
CHS Estates,L2 Estates,26/01/2024,Domestic Waste,Estates Operations,Suez Recycling & Recovery UK Ltd,33175381,"1,159.34",Collection of mixed waste streams from Elland Equipment Store.from 1st July 2023 to 31st March 2024.,BS22 6WA
CHS Estates,L2 Estates,26/01/2024,Domestic Waste,Estates Operations,Suez Recycling & Recovery UK Ltd,33175381,933.99,Collection of mixed waste streams from Huddersfield Pharmacy Specialist Unitfrom 1st July 2023 to 31st March 2024.,BS22 6WA
CHS Facilities,L2 Facilities,26/01/2024,Domestic Waste,Domestics,Suez Recycling & Recovery UK Ltd,33175381,104.70,Collection of mixed waste streams from Rainbow Child Development Unit.from 1st July 2023 to 31st March 2024.,BS22 6WA
CHS Estates,L2 Estates,26/01/2024,Domestic Waste,Estates Properties,Suez Recycling & Recovery UK Ltd,33175381,"1,717.91",Collection of mixed waste streams from Renal Dialysisfrom 1st July 2023 to 31st March 2024.,BS22 6WA
CHS Estates,L2 Estates,26/01/2024,Domestic Waste,Estates Operations,Suez Recycling & Recovery UK Ltd,33175381,104.70,Collection of mixed waste streams from Park Valley Mills from 1st July 2023 to 31st March 2024.,BS22 6WA
CHS Facilities,L2 Facilities,26/01/2024,Domestic Waste,Domestics,Suez Recycling & Recovery UK Ltd,33175381,83.76,Collection of mixed waste streams from Westgate House  Halifax.from 1st July 2023 to 31st March 2024.,BS22 6WA
Families & Specialist Services,Radiology,12/01/2024,Imaging Equipment Maintenance,Rad General,Ge Medical Systems Ltd,5050220,"35,753.39 ",Replacement x-ray tube required for Plain Film Room 2 Calderdale Royal Hospital.,HP8 4SP
Balance Sheet,Fixed Assets,19/01/2024,Additions - Assets Under Construction,Capital (Surgical),Carl Zeiss Ltd,5140643136,"152,543.11 ",C191545 - CPQ 16212 MIC 23 -  7761044651 Lumera 700 PosteriorTeaching c/w HD Cameraand Monitor -50CV371B X1 50CEONFS X1  30RES700,CB23 6DW
Balance Sheet,Fixed Assets,12/01/2024,Additions - Assets Under Construction,Capital (Estates),Clifford Cooper & Sons Ltd,62864,"44,850.24 ",SUPPLY AND INSTALLATION OF A CONDENSATE RECOVERY SCHEME ,CM20 9GY
Families & Specialist Services,Pathology,08/01/2024,Laboratory Bottles And Containers,Path General,Chrystal Consulting Ltd,63718,"113,964.54 ",FY23-24 Managed Service Contract FOR CHEMSTATS  GEM5000 AND HEMOCHRONS Werfen,M22 5HQ
Families & Specialist Services,Pathology,08/01/2024,Laboratory Test Kits,Microbiology,Chrystal Consulting Ltd,63843,"130,116.79 ",Diasorin Managed Service Contract for 01.04.23 – 31.03.24.,M22 5HQ
Families & Specialist Services,Pathology,26/01/2024,Laboratory Test Kits,Cell Path,Roche Diagnostics Ltd,6571846744,"63,485.03 ",managed service contract for Immunohistochemistry ,RH15 9RY
Medical Division,Medical Specialities,05/01/2024,Contractual Clinical Services,Gastroenterology,Gutcare.Org Ltd,67B,"29,304.00 ",Gutcare Contract C119938 Supplement RWYF400111784 by £500 000 to cover 2023/24 invoices-  Insourcing Gastroenterology Respiratory and Cardiology,RM11 2EZ
CHS Estates,L2 Estates,26/01/2024,Professional Fees,Estates Operations,NIFES Property Limited,696-3683,"45,864.00 ",S - Huddersfield Royal Infirmary - Six Facet Survey Risk Assessment of Backlog Maintenance AS PER Contract ,NN4 7XD
Balance Sheet,Fixed Assets,10/01/2024,Additions - Assets Under Construction,Capital (His),Dell Corporation Ltd,7402970212,"26,878.80 ",Dell - PowerEdge R760 Server [PowerEdge R760 - Full Configuration - [EMEA_R760]].  £22 399:00.  Solution ID 4644014.2.  Quote number 3400002791685.1,RG12 1LF
Balance Sheet,Fixed Assets,05/01/2024,Additions - Assets Under Construction,Capital (Estates),Fresenius Kabi Ltd,914902162,"35,002.00",ITEM - ZK288124DESCRIPTION - Vigilant Centerium 2000 pump Licence - Licence to manage via WiFi or in server mode up to 200 pumps,WA7 1NT
Balance Sheet,Fixed Assets,05/01/2024,Additions - Assets Under Construction,Capital (Estates),Fresenius Kabi Ltd,914902162,"5,681.00",ITEM - ZK288105DESCRIPTION - Vigilant Master Med Licence - Dose error reduction software licence,WA7 1NT
Balance Sheet,Fixed Assets,05/01/2024,Additions - Assets Under Construction,Capital (Estates),Fresenius Kabi Ltd,914902162,"12,343.00",ITEM - ZK288108DESCRIPTION - Vigilant Insight Licence - Pump and drug usage statistic overview licence ,WA7 1NT
Balance Sheet,Fixed Assets,05/01/2024,Additions - Assets Under Construction,Capital (Estates),Fresenius Kabi Ltd,914902162,"11,970.00",ITEM - ZK288106DESCRIPTION - Vigilant Bridge Licence - Auto documentation licence,WA7 1NT
Families & Specialist Services,CDC - Community Diagnostic Hubs,12/01/2024,Imaging Equipment Purchases,Spoke - Broadstreet Halifax,NHS Supply Chain Co-ordination Limited,9524001051,"90,731.81 ",C221355 - Epiq Elite Diagnostic Ultrasound Machine - CDC Broad Street,DE55 4QJ
CHS Estates,L2 Estates,05/01/2024,Rates,Estates Operations,Kirklees Council,969286425_2023,"56,051.00 ",Council Tax for Huddersfield Royal Infirmary for 23/24,HD1 2NF
CHS Balance Sheet,Fixed Assets,12/01/2024,Additions - Assets Under Construction,Tangible,Netcall Technology Ltd,BILL007328,"91,634.40 ",Server upgrade with implementation of 4 ContactPortal Bots (VOPS) including Licences and Professional Services.,MK41 7PH
CHS Estates,L2 Estates,17/01/2024,Other Clinical Costs,Management Estates,Agfa Finance,DEIN/23120011,"144,073.80 ", PACS system. Managed Service Contract. Yorkshire Imaging Collaborative.  Payment terms: quatery in advnace.,TW8 9TH
CHS Estates,L2 Estates,17/01/2024,Other Clinical Costs,Management Estates,Agfa Finance,DEIN/23120012,"144,073.80 ", PACS system. Managed Service Contract. Yorkshire Imaging Collaborative.  Payment terms: quatery in advnace.,TW8 9TH
CHS Estates,L2 Estates,17/01/2024,Other Clinical Costs,Management Estates,Agfa Finance,DEIN/23120013,"144,073.80 ", PACS system. Managed Service Contract. Yorkshire Imaging Collaborative.  Payment terms: quatery in advnace.,TW8 9TH
CHS Estates,L2 Estates,10/01/2024,Electricity,Estates Operations,Smartest Energy Limited,IN1101157185,"251,762.09 ",Mains electricity Calderdale Royal Hospital ,E14 4HD
CHS Estates,L2 Estates,12/01/2024,Electricity,Estates Operations,Smartest Energy Limited,IN1101157186,"261,710.13 ",Mains electricity Calderdale Royal Hospital ,E14 4HD
CHS Estates,L2 Estates,17/01/2024,Electricity,Estates Operations,Smartest Energy Limited,IN1101157187,"265,232.92 ",Mains electricity Calderdale Royal Hospital ,E14 4HD
CHS Estates,L2 Estates,10/01/2024,Electricity,Estates Operations,Smartest Energy Limited,IN1101163379,"84,722.13 ",Mains Electricity Huddersfield Royal Infirmary ,E14 4HD
CHS Estates,L2 Estates,12/01/2024,Electricity,Estates Operations,Smartest Energy Limited,IN1101163380,"89,192.28 ",Mains Electricity Huddersfield Royal Infirmary ,E14 4HD
CHS Estates,L2 Estates,17/01/2024,Electricity,Estates Operations,Smartest Energy Limited,IN1101163381,"87,779.23 ",Mains Electricity Huddersfield Royal Infirmary ,E14 4HD
CHS Estates,L2 Estates,26/01/2024,Electricity,Estates Operations,Smartest Energy Limited,IN1101181287,"92,049.50 ",Mains Electricity Huddersfield Royal Infirmary ,E14 4HD
CHS Estates,L2 Estates,26/01/2024,Electricity,Estates Operations,Smartest Energy Limited,IN1101181289,"243,720.76 ",Mains electricity Calderdale Royal Hospital ,E14 4HD
Families & Specialist Services,CDC - Community Diagnostic Hubs,26/01/2024,Med Surg Eqpt General,Spoke - Broadstreet Halifax,Spacelabs Healthcare Ltd,IN327274,"66,393.76 ",PaSL Portable  additional Sentinel licence  20xEclipse Pro and 4x OnTrak ABPM,SG13 7DT
Surgery & Anaesthetics,Surgical Divisional Support,17/01/2024,Training Expenses,Support Services,CMR Surgical Ltd,INV-UK01010815,"42,000.00 ",Team Training Sessions - 2 x £35 000.00Ref: Contract C141319,CB24 9NG
Balance Sheet,Fixed Assets,05/01/2024,Additions - Assets Under Construction,Capital (Estates),Vernacare Ltd,OP/I130549,"29,440.86 ",Huddersfield Royal Infirmary - ESTATES - SUPPLY AND INSTALLATION OF 5 VORTEX AIR MACERATORS AS PER YOUR QUOTE ,BL1 2TX
Balance Sheet,Fixed Assets,19/01/2024,Additions - Assets Under Construction,Capital (Estates),Protec Fire Detection Plc,OP/I911842,"37,525.87 ",EMERGENCY LIGHTING - SUPPLY AND INSTALLATION OF EMERGECY LIGHTING AS PER YOUR QUOTE ,BB9 6RT
Balance Sheet,Fixed Assets,24/01/2024,Additions - Assets Under Construction,Capital (Surgical),Summit Medical UK Ltd,SI-237071,"54,738.00 ",TORS Bone Cement Removal System all as detailed in your Quote complete with 5x Axial Handpiece and 5x Cleaning Cell,GL54 2HQ
